fUST/lending_fUST_20250816
["ID","MTS","AMOUNT","RATE_DAILY","PERIOD"]
[379544356,1755325852044,-480.0,0.00022465,3]
[379544357,1755325852054,-480.0,0.00022465,3]
[379544358,1755325852063,-480.0,0.00022465,3]
[379544359,1755325852073,-480.0,0.00022465,3]
[379544360,1755325852082,-480.0,0.00022465,3]
[379544361,1755325852091,-440.0,0.00022465,3]
[379544362,1755325852101,-480.0,0.00022465,3]
[379544363,1755325852110,-547.9,0.00022465,3]
[379544364,1755325852119,-203.67309381,0.00022465,3]
[379544365,1755325852128,-440.0,0.00022465,3]
[379544366,1755325852138,-480.0,0.00022465,3]
[379544367,1755325852147,-897.72,0.00022465,3]
[379544368,1755325852156,-507.98,0.00022465,3]
[379544369,1755325852165,-440.0,0.00022465,3]
[379544370,1755325852175,-440.0,0.00022465,3]
[379544371,1755325852186,-480.0,0.00022465,3]
[379544372,1755325852196,-480.0,0.00022465,3]
[379544373,1755325852207,-480.0,0.00022465,3]
[379544374,1755325852216,-151.0,0.00022465,7]
[379544375,1755325852226,-480.0,0.00022465,3]
[379544376,1755325852235,-151.0,0.00022465,7]
[379544377,1755325852244,-480.0,0.00022465,3]
[379544378,1755325852254,-151.0,0.00022465,7]
[379544379,1755325852263,-604.98642744,0.00022465,3]
[379544380,1755325852272,-151.0,0.00022465,7]
[379544381,1755325852281,-440.0,0.00022465,3]
[379544382,1755325852290,-151.0,0.00022465,7]
[379544383,1755325852300,-480.0,0.00022465,3]
[379544384,1755325852309,-440.0,0.00022465,3]
[379544385,1755325852318,-428.54760259,0.00022465,3]
[379544386,1755325852327,-480.0,0.00022465,3]
[379544387,1755325852336,-440.0,0.00022465,3]
[379544388,1755325852349,-480.0,0.00022465,3]
[379544389,1755325852359,-480.0,0.00022465,3]
[379544390,1755325852368,-440.0,0.00022465,3]
[379544391,1755325852378,-480.0,0.00022465,3]
[379544392,1755325852387,-480.0,0.00022465,3]
[379544393,1755325852397,-440.0,0.00022465,3]
[379544394,1755325852406,-480.0,0.00022465,3]
[379544395,1755325852416,-280.0,0.00022465,3]
[379544396,1755325852428,-480.0,0.00022465,3]
[379544397,1755325852439,-480.0,0.00022465,3]
[379544398,1755325852449,-480.0,0.00022465,3]
[379544399,1755325852458,-480.0,0.00022465,3]
[379544400,1755325852468,-440.0,0.00022465,3]
[379544401,1755325852477,-1096.7,0.00022465,3]
[379544402,1755325852487,-440.0,0.00022465,3]
[379544403,1755325852497,-480.0,0.00022465,3]
[379544404,1755325852507,-361.47640328,0.00022465,3]
[379544405,1755325852516,-480.0,0.00022465,3]
[379544406,1755325852526,-480.0,0.00022465,3]
[379544407,1755325852535,-360.0,0.00022465,3]
[379544408,1755325852545,-480.0,0.00022465,3]
[379544409,1755325852555,-480.0,0.00022465,3]
[379544410,1755325852565,-440.0,0.00022465,3]
[379544411,1755325852574,-615.79121219,0.00022465,3]
[379544412,1755325852584,-480.0,0.00022465,3]
[379544413,1755325852595,-480.0,0.00022465,3]
[379544414,1755325852605,-480.0,0.00022465,3]
[379544415,1755325852615,-480.0,0.00022465,3]
[379544416,1755325852626,-345.60498488,0.00022465,3]
[379544417,1755325852635,-440.0,0.00022465,3]
[379544418,1755325852645,-551.5458643,0.00022465,3]
[379544419,1755325852654,-480.0,0.00022465,3]
[379544420,1755325852664,-480.0,0.00022465,3]
[379544421,1755325852674,-480.0,0.00022465,3]
[379544422,1755325852684,-440.0,0.00022465,3]
[379544423,1755325852694,-567.22,0.00022465,3]
[379544424,1755325852703,-480.0,0.00022465,3]
[379544425,1755325852712,-500.0,0.00022465,3]
[379544426,1755325852722,-480.0,0.00022465,3]
[379544427,1755325852732,-440.0,0.00022465,3]
[379544428,1755325852741,-480.0,0.00022465,3]
[379544429,1755325852751,-630.86,0.00022465,3]
[379544430,1755325852761,-480.0,0.00022465,3]
[379544431,1755325852771,-521.5,0.00022465,3]
[379544432,1755325852780,-921.87,0.00022465,3]
[379544433,1755325852790,-440.0,0.00022465,3]
[379544434,1755325852800,-480.0,0.00022465,3]
[379544435,1755325852810,-440.0,0.00022465,3]
[379544436,1755325852819,-1883.66,0.00022465,3]
[379544437,1755325852829,-440.0,0.00022465,3]
[379544438,1755325852838,-790.29,0.00022465,3]
[379544439,1755325852848,-440.0,0.00022465,3]
[379544440,1755325852857,-480.0,0.00022465,3]
[379544441,1755325852866,-480.0,0.00022465,3]
[379544442,1755325852876,-480.0,0.00022465,3]
[379544443,1755325852886,-873.53,0.00022465,3]
[379544444,1755325852895,-440.0,0.00022465,3]
[379544445,1755325852905,-440.0,0.00022465,3]
[379544446,1755325852914,-582.63,0.00022465,3]
[379544447,1755325852923,-440.0,0.00022465,3]
[379544448,1755325852933,-440.0,0.00022465,3]
[379544449,1755325852943,-440.0,0.00022465,3]
[379544450,1755325852952,-440.0,0.00022465,3]
[379544451,1755325852962,-480.0,0.00022465,3]
[379544452,1755325852972,-480.0,0.00022465,3]
[379544453,1755325852982,-360.0,0.00022465,3]
[379544454,1755325852992,-480.0,0.00022465,3]
[379544455,1755325853001,-480.0,0.00022465,3]
[379544456,1755325853011,-480.0,0.00022465,3]
[379544457,1755325853020,-480.0,0.00022465,3]
[379544458,1755325853030,-480.0,0.00022465,2]
[379544459,1755325853040,-480.0,0.00022465,3]
[379544460,1755325853049,-480.0,0.00022465,3]
[379544461,1755325853058,-665.42,0.00022465,3]
[379544462,1755325853068,-480.0,0.00022465,3]
[379544463,1755325853077,-480.0,0.00022465,3]
[379544464,1755325853086,-480.0,0.00022465,3]
[379544465,1755325853095,-480.0,0.00022465,3]
[379544466,1755325853104,-5312.59,0.00022465,3]
[379544467,1755325853114,-480.0,0.00022465,3]
[379544468,1755325853123,-440.0,0.00022465,3]
[379544469,1755325853132,-440.0,0.00022465,3]
[379544470,1755325853141,-440.0,0.00022465,3]
[379544471,1755325853151,-480.0,0.00022465,3]
[379544472,1755325853161,-788.36,0.00022465,3]
[379544473,1755325853170,-480.0,0.00022465,3]
[379544474,1755325853180,-534.18063631,0.00022465,3]
[379544475,1755325853190,-480.0,0.00022465,3]
[379544476,1755325853199,-480.0,0.00022465,3]
[379544477,1755325853210,-480.0,0.00022465,3]
[379544478,1755325853219,-480.0,0.00022465,3]
[379544479,1755325853229,-440.0,0.00022465,3]
[379544480,1755325853239,-440.0,0.00022465,3]
[379544481,1755325853250,-440.0,0.00022465,3]
[379544482,1755325853260,-537.08,0.00022465,3]
[379544483,1755325853270,-151.0,0.00022465,7]
[379544484,1755325853279,-480.0,0.00022465,3]
[379544485,1755325853290,-363.32898578,0.00022465,3]
[379544486,1755325853300,-151.0,0.00022465,7]
[379544487,1755325853310,-2518.97,0.00022465,3]
[379544488,1755325853320,-151.0,0.00022465,7]
[379544489,1755325853330,-151.0,0.00022465,7]
[379544490,1755325853340,-480.0,0.00022465,3]
[379544491,1755325853354,-151.0,0.00022465,7]
[379544492,1755325853364,-480.0,0.00022465,3]
[379544493,1755325853374,-522.01,0.00022465,3]
[379544494,1755325853383,-480.0,0.00022465,3]
[379544495,1755325853393,-440.0,0.00022465,3]
[379544496,1755325853403,-151.0,0.00022465,7]
[379544497,1755325853412,-480.0,0.00022465,3]
[379544498,1755325853422,-480.0,0.00022465,3]
[379544499,1755325853432,-480.0,0.00022465,3]
[379544500,1755325853441,-480.0,0.00022465,3]
[379544501,1755325853450,-151.0,0.00022465,7]
[379544502,1755325853460,-480.0,0.00022465,3]
[379544503,1755325853470,-480.0,0.00022465,3]
[379544504,1755325853479,-440.0,0.00022465,3]
[379544505,1755325853489,-480.0,0.00022465,3]
[379544506,1755325853502,-480.0,0.00022465,3]
[379544507,1755325853511,-440.0,0.00022465,3]
[379544508,1755325853521,-440.0,0.00022465,3]
[379544509,1755325853531,-1092.468622,0.00022465,7]
[379544510,1755325853541,-480.0,0.00022465,3]
[379544511,1755325853550,-480.0,0.00022465,3]
[379544512,1755325853561,-219.32892455,0.00022465,3]
[379544513,1755325853570,-488.4,0.00022465,3]
[379544514,1755325853580,-240.04082912,0.00022465,3]
[379544515,1755325853589,-1092.468622,0.00022465,7]
[379544516,1755325853599,-440.0,0.00022465,3]
[379544517,1755325853608,-480.0,0.00022465,3]
[379544518,1755325853618,-480.0,0.00022465,3]
[379544519,1755325853628,-4778.29,0.00022465,3]
[379544520,1755325853638,-360.68800541,0.00022465,3]
[379544521,1755325853647,-440.0,0.00022465,3]
[379544522,1755325853657,-151.0,0.00022465,7]
[379544523,1755325853667,-480.0,0.00022465,3]
[379544524,1755325853677,-480.0,0.00022465,3]
[379544525,1755325853686,-480.0,0.00022465,3]
[379544526,1755325853695,-480.0,0.00022465,3]
[379544527,1755325853705,-440.0,0.00022465,3]
[379544528,1755325853714,-440.0,0.00022465,3]
[379544529,1755325853724,-320.99473271,0.00022465,3]
[379544530,1755325853733,-538.68,0.00022465,3]
[379544531,1755325853743,-480.0,0.00022465,3]
[379544532,1755325853752,-609.61,0.00022465,3]
[379544533,1755325853762,-480.0,0.00022465,3]
[379544534,1755325853771,-440.0,0.00022465,3]
[379544535,1755325853781,-1203.26,0.00022465,3]
[379544536,1755325853791,-480.0,0.00022465,3]
[379544537,1755325853801,-344.28527995,0.00022465,3]
[379544538,1755325853811,-1187.37,0.00022465,3]
[379544539,1755325853821,-480.0,0.00022465,3]
[379544540,1755325853830,-1759.99,0.00022465,3]
[379544541,1755325853839,-440.0,0.00022465,3]
[379544542,1755325853849,-480.0,0.00022465,3]
[379544543,1755325853859,-440.0,0.00022465,3]
[379544544,1755325853870,-440.0,0.00022465,3]
[379544545,1755325853879,-1222.52,0.00022465,3]
[379544546,1755325853890,-480.0,0.00022465,3]
[379544547,1755325853900,-480.0,0.00022465,3]
[379544548,1755325853909,-253.63395451,0.00022465,3]
[379544549,1755325853919,-539.904416,0.00022465,7]
[379544550,1755325853929,-440.0,0.00022465,3]
[379544551,1755325853938,-303.0181486,0.00022465,3]
[379544552,1755325853948,-3413.77,0.00022465,3]
[379544553,1755325853957,-539.904416,0.00022465,7]
[379544554,1755325853967,-480.0,0.00022465,3]
[379544555,1755325853976,-160.160025,0.00022465,7]
[379544556,1755325853985,-480.0,0.00022465,3]
[379544557,1755325853996,-480.0,0.00022465,3]
[379544558,1755325854006,-160.160025,0.00022465,7]
[379544559,1755325854016,-440.0,0.00022465,3]
[379544560,1755325854025,-380.0,0.00022465,3]
[379544561,1755325854035,-8503.19,0.00022465,3]
[379544562,1755325854163,-480.0,0.00022465,3]
[379544563,1755325854173,-480.0,0.00022465,3]
[379544564,1755325854183,-480.0,0.00022465,3]
[379544565,1755325854193,-480.0,0.00022465,3]
[379544566,1755325854202,-239.38561285,0.00022465,3]
[379544567,1755325854213,-440.0,0.00022465,3]
[379544568,1755325854222,-2453.46,0.00022465,3]
[379544569,1755325854232,-480.0,0.00022465,3]
[379544570,1755325854241,-533.25,0.00022465,3]
[379544571,1755325854251,-823.47,0.00022465,3]
[379544572,1755325854260,-440.0,0.00022465,3]
[379544573,1755325854270,-224.83628529,0.00022465,3]
[379544574,1755325854279,-440.0,0.00022465,3]
[379544575,1755325854289,-480.0,0.00022465,3]
[379544576,1755325854299,-813.04,0.00022465,3]
[379544577,1755325854308,-480.0,0.00022465,3]
[379544578,1755325854318,-440.0,0.00022465,3]
[379544579,1755325854327,-503.31,0.00022465,3]
[379544580,1755325854337,-480.0,0.00022465,3]
[379544581,1755325854349,-480.0,0.00022465,3]
[379544582,1755325854359,-480.0,0.00022465,3]
[379544583,1755325854368,-805.96,0.00022465,3]
[379544584,1755325854378,-440.0,0.00022465,3]
[379544585,1755325854389,-480.0,0.00022465,3]
[379544586,1755325854399,-480.0,0.00022465,3]
[379544587,1755325854408,-542.44,0.00022465,3]
[379544588,1755325854421,-673.93,0.00022465,3]
[379544589,1755325854431,-480.0,0.00022465,3]
[379544590,1755325854441,-480.0,0.00022465,3]
[379544591,1755325854451,-582.99,0.00022465,3]
[379544592,1755325854461,-480.0,0.00022465,3]
[379544593,1755325854470,-499.02,0.00022465,3]
[379544594,1755325854480,-282.97798034,0.00022465,3]
[379544595,1755325854489,-440.0,0.00022465,3]
[379544596,1755325854500,-440.0,0.00022465,3]
[379544597,1755325854509,-480.0,0.00022465,3]
[379544598,1755325854519,-480.0,0.00022465,3]
[379544599,1755325854528,-3258.78,0.00022465,3]
[379544600,1755325854537,-480.0,0.00022465,3]
[379544601,1755325854547,-360.0,0.00022465,3]
[379544602,1755325854556,-869.89,0.00022465,3]
[379544603,1755325854566,-151.0,0.00022465,7]
[379544604,1755325854576,-3677.96,0.00022465,3]
[379544605,1755325854586,-480.0,0.00022465,3]
[379544606,1755325854595,-440.0,0.00022465,3]
[379544607,1755325854605,-517.97,0.00022465,3]
[379544608,1755325854614,-480.0,0.00022465,3]
[379544609,1755325854624,-1885.76,0.00022465,3]
[379544610,1755325854635,-440.0,0.00022465,3]
[379544611,1755325854645,-480.0,0.00022465,3]
[379544612,1755325854655,-755.5,0.00022465,3]
[379544613,1755325854664,-480.0,0.00022465,3]
[379544614,1755325854673,-480.0,0.00022465,3]
[379544615,1755325854683,-480.0,0.00022465,3]
[379544616,1755325854693,-2144.06,0.00022465,3]
[379544617,1755325854703,-440.0,0.00022465,3]
[379544618,1755325854712,-662.53,0.00022465,3]
[379544619,1755325854722,-440.0,0.00022465,3]
[379544620,1755325854731,-176.36654549,0.00022473,2]
[379544621,1755325854741,-152.36,0.000225,7]
[379544622,1755325854752,-1000.0,0.00022521,2]
[379544623,1755325854761,-153.582969,0.00022521,7]
[379544624,1755325854771,-160.160025,0.00022521,7]
[379544625,1755325854780,-160.160025,0.00022521,7]
[379544626,1755325854790,-151.0,0.00022521,7]
[379544627,1755325854799,-165.8343227,0.00022612,2]
[379544628,1755325854810,-200.0,0.00022614,20]
[379544629,1755325854819,-200.0,0.00022614,20]
[379544630,1755325854829,-200.0,0.00022614,20]
[379544631,1755325854838,-200.0,0.00022614,20]
[379544632,1755325854848,-200.0,0.00022614,20]
[379544633,1755325854857,-200.0,0.00022614,20]
[379544634,1755325854867,-200.0,0.00022614,20]
[379544635,1755325854876,-200.0,0.00022614,20]
[379544636,1755325854886,-200.0,0.00022614,20]
[379544637,1755325854895,-200.0,0.00022614,20]
[379544638,1755325854904,-240.0,0.00022614,20]
[379544639,1755325854914,-460.0,0.00022656,2]
[379544640,1755325854924,-3000.0,0.000227,2]
[379544641,1755325854933,-3000.0,0.0002271,2]
[379544642,1755325854942,-580.575816,0.00022712,2]
[379544643,1755325854952,-327.7683223,0.00022712,2]
[379544644,1755325854962,-580.575816,0.00022712,2]
[379544645,1755325854971,-166.6625486,0.00022712,2]
[379544646,1755325854981,-580.575816,0.00022712,2]
[379544647,1755325854990,-624.291337,0.00022712,2]
[379544648,1755325855001,-3000.0,0.0002272,2]
[379544649,1755325855011,-500.0,0.00022721,2]
[379544650,1755325855021,-1000.0,0.00022721,2]
[379544651,1755325855030,-500.0,0.00022721,2]
[379544652,1755325855040,-1000.0,0.00022721,2]
[379544653,1755325855050,-1000.0,0.00022721,2]
[379544654,1755325855059,-1000.0,0.00022721,2]
[379544655,1755325855069,-1000.0,0.00022721,2]
[379544656,1755325855078,-1000.0,0.00022721,2]
[379544657,1755325855087,-1000.0,0.00022721,2]
[379544658,1755325855097,-500.0,0.00022721,2]
[379544659,1755325855106,-500.0,0.00022729,3]
[379544660,1755325855115,-3000.0,0.0002273,2]
[379544661,1755325855125,-500.0,0.00022739,3]
[379544662,1755325855135,-218.06917036,0.00022739,3]
[379544663,1755325855145,-480.0,0.00022739,3]
[379544664,1755325855154,-353.40953788,0.00022739,3]
[379544665,1755325855164,-151.94,0.00022739,3]
[379544666,1755325855174,-400.0,0.00022739,3]
[379544667,1755325855183,-592.75674731,0.00022739,3]
[379544668,1755325855194,-480.0,0.00022739,3]
[379544669,1755325855203,-480.0,0.00022739,3]
[379544670,1755325855212,-440.0,0.00022739,3]
[379544671,1755325855223,-440.0,0.00022739,3]
[379544672,1755325855232,-626.67665325,0.00022739,3]
[379544673,1755325855242,-480.0,0.00022739,3]
[379544674,1755325855251,-531.7,0.00022739,3]
[379544675,1755325855261,-480.0,0.00022739,3]
[379544676,1755325855270,-480.0,0.00022739,3]
[379544677,1755325855279,-480.0,0.00022739,3]
[379544678,1755325855289,-480.0,0.00022739,3]
[379544679,1755325855298,-440.0,0.00022739,3]
[379544680,1755325855308,-480.0,0.00022739,3]
[379544681,1755325855317,-480.0,0.00022739,3]
[379544682,1755325855326,-480.0,0.00022739,3]
[379544683,1755325855335,-440.0,0.00022739,3]
[379544684,1755325855347,-480.0,0.00022739,3]
[379544685,1755325855356,-480.0,0.00022739,3]
[379544686,1755325855366,-480.0,0.00022739,3]
[379544687,1755325855375,-480.0,0.00022739,3]
[379544688,1755325855384,-440.0,0.00022739,3]
[379544689,1755325855393,-480.0,0.00022739,3]
[379544690,1755325855402,-151.0,0.00022739,7]
[379544691,1755325855412,-480.0,0.00022739,3]
[379544692,1755325855421,-440.0,0.00022739,3]
[379544693,1755325855431,-151.669717,0.00022739,7]
[379544694,1755325855440,-440.0,0.00022739,3]
[379544695,1755325855450,-1304.87,0.00022739,3]
[379544696,1755325855459,-480.0,0.00022739,3]
[379544697,1755325855469,-480.0,0.00022739,3]
[379544698,1755325855478,-440.0,0.00022739,3]
[379544699,1755325855489,-153.34226,0.00022739,7]
[379544700,1755325855499,-480.0,0.00022739,3]
[379544701,1755325855508,-480.0,0.00022739,3]
[379544702,1755325855517,-480.0,0.00022739,3]
[379544703,1755325855527,-480.0,0.00022739,3]
[379544704,1755325855536,-480.0,0.00022739,3]
[379544705,1755325855545,-440.0,0.00022739,3]
[379544706,1755325855555,-897.72,0.00022739,3]
[379544707,1755325855564,-507.98,0.00022739,3]
[379544708,1755325855573,-480.0,0.00022739,3]
[379544709,1755325855583,-480.0,0.00022739,3]
[379544710,1755325855592,-262.38,0.00022739,3]
[379544711,1755325855601,-480.0,0.00022739,3]
[379544712,1755325855610,-480.0,0.00022739,3]
[379544713,1755325855621,-151.0,0.00022739,7]
[379544714,1755325855631,-480.0,0.00022739,3]
[379544715,1755325855641,-569.16,0.00022739,3]
[379544716,1755325855650,-440.0,0.00022739,3]
[379544717,1755325855660,-480.0,0.00022739,3]
[379544718,1755325855670,-480.0,0.00022739,3]
[379544719,1755325855679,-480.0,0.00022739,3]
[379544720,1755325855691,-480.0,0.00022739,3]
[379544721,1755325855701,-440.0,0.00022739,3]
[379544722,1755325855712,-480.0,0.00022739,3]
[379544723,1755325855721,-480.0,0.00022739,3]
[379544724,1755325855730,-480.0,0.00022739,3]
[379544725,1755325855739,-1096.7,0.00022739,3]
[379544726,1755325855750,-480.0,0.00022739,3]
[379544727,1755325855760,-480.0,0.00022739,3]
[379544728,1755325855768,-480.0,0.00022739,3]
[379544729,1755325855778,-260.0,0.00022739,3]
[379544730,1755325855787,-480.0,0.00022739,3]
[379544731,1755325855796,-480.0,0.00022739,3]
[379544732,1755325855807,-480.0,0.00022739,3]
[379544733,1755325855816,-440.0,0.00022739,3]
[379544734,1755325855825,-480.0,0.00022739,3]
[379544735,1755325855834,-480.0,0.00022739,3]
[379544736,1755325855843,-480.0,0.00022739,3]
[379544737,1755325855853,-480.0,0.00022739,3]
[379544738,1755325855862,-567.22,0.00022739,3]
[379544739,1755325855871,-480.0,0.00022739,3]
[379544740,1755325855881,-480.0,0.00022739,3]
[379544741,1755325855890,-480.0,0.00022739,3]
[379544742,1755325855899,-630.86,0.00022739,3]
[379544743,1755325855908,-480.0,0.00022739,3]
[379544744,1755325855917,-521.5,0.00022739,3]
[379544745,1755325855927,-921.87,0.00022739,3]
[379544746,1755325855936,-207.205123,0.00022739,7]
[379544747,1755325855945,-480.0,0.00022739,3]
[379544748,1755325855954,-1883.66,0.00022739,3]
[379544749,1755325855964,-207.205123,0.00022739,7]
[379544750,1755325855973,-790.29,0.00022739,3]
[379544751,1755325855982,-480.0,0.00022739,3]
[379544752,1755325855992,-480.0,0.00022739,3]
[379544753,1755325856001,-480.0,0.00022739,3]
[379544754,1755325856011,-873.53,0.00022739,3]
[379544755,1755325856020,-582.63,0.00022739,3]
[379544756,1755325856029,-480.0,0.00022739,3]
[379544757,1755325856038,-254.10796831,0.00022739,3]
[379544758,1755325856047,-480.0,0.00022739,3]
[379544759,1755325856058,-480.0,0.00022739,3]
[379544760,1755325856067,-480.0,0.00022739,3]
[379544761,1755325856076,-480.0,0.00022739,3]
[379544762,1755325856086,-480.0,0.00022739,2]
[379544763,1755325856095,-480.0,0.00022739,3]
[379544764,1755325856104,-480.0,0.00022739,3]
[379544765,1755325856115,-665.42,0.00022739,3]
[379544766,1755325856127,-480.0,0.00022739,3]
[379544767,1755325856138,-190.56293796,0.00022739,3]
[379544768,1755325856148,-480.0,0.00022739,3]
[379544769,1755325856157,-480.0,0.00022739,3]
[379544770,1755325856167,-5312.59,0.00022739,3]
[379544771,1755325856178,-480.0,0.00022739,3]
[379544772,1755325856187,-480.0,0.00022739,3]
[379544773,1755325856196,-788.36,0.00022739,3]
[379544774,1755325856205,-480.0,0.00022739,3]
[379544775,1755325856215,-480.0,0.00022739,3]
[379544776,1755325856224,-480.0,0.00022739,3]
[379544777,1755325856233,-480.0,0.00022739,3]
[379544778,1755325856242,-480.0,0.00022739,3]
[379544779,1755325856253,-537.08,0.00022739,3]
[379544780,1755325856266,-420.0,0.00022739,3]
[379544781,1755325856276,-151.0,0.00022739,7]
[379544782,1755325856286,-151.0,0.00022739,7]
[379544783,1755325856295,-2518.97,0.00022739,3]
[379544784,1755325856306,-155.893141,0.00022739,7]
[379544785,1755325856316,-151.0,0.00022739,7]
[379544786,1755325856326,-480.0,0.00022739,3]
[379544787,1755325856336,-151.0,0.00022739,7]
[379544788,1755325856349,-480.0,0.00022739,3]
[379544789,1755325856358,-522.01,0.00022739,3]
[379544790,1755325856367,-480.0,0.00022739,3]
[379544791,1755325856377,-151.724719,0.00022739,7]
[379544792,1755325856387,-480.0,0.00022739,3]
[379544793,1755325856396,-480.0,0.00022739,3]
[379544794,1755325856405,-480.0,0.00022739,3]
[379544795,1755325856415,-151.0,0.00022739,7]
[379544796,1755325856425,-480.0,0.00022739,3]
[379544797,1755325856434,-584.24868969,0.00022739,3]
[379544798,1755325856443,-480.0,0.00022739,3]
[379544799,1755325856452,-480.0,0.00022739,3]
[379544800,1755325856462,-480.0,0.00022739,3]
[379544801,1755325856471,-480.0,0.00022739,3]
[379544802,1755325856481,-1092.468622,0.00022739,7]
[379544803,1755325856491,-488.4,0.00022739,3]
[379544804,1755325856501,-440.0,0.00022739,3]
[379544805,1755325856510,-1092.468622,0.00022739,7]
[379544806,1755325856520,-480.0,0.00022739,3]
[379544807,1755325856529,-489.44,0.00022739,3]
[379544808,1755325856539,-4778.29,0.00022739,3]
[379544809,1755325856549,-480.0,0.00022739,3]
[379544810,1755325856558,-480.0,0.00022739,3]
[379544811,1755325856567,-480.0,0.00022739,3]
[379544812,1755325856576,-480.0,0.00022739,3]
[379544813,1755325856586,-440.0,0.00022739,3]
[379544814,1755325856595,-609.61,0.00022739,3]
[379544815,1755325856604,-480.0,0.00022739,3]
[379544816,1755325856613,-1203.26,0.00022739,3]
[379544817,1755325856622,-440.0,0.00022739,3]
[379544818,1755325856631,-1187.37,0.00022739,3]
[379544819,1755325856640,-257.71934754,0.00022739,3]
[379544820,1755325856649,-1759.99,0.00022739,3]
[379544821,1755325856658,-480.0,0.00022739,3]
[379544822,1755325856668,-1222.52,0.00022739,3]
[379544823,1755325856678,-480.0,0.00022739,3]
[379544824,1755325856687,-480.0,0.00022739,3]
[379544825,1755325856696,-539.904416,0.00022739,7]
[379544826,1755325856705,-3413.77,0.00022739,3]
[379544827,1755325856715,-539.904416,0.00022739,7]
[379544828,1755325856723,-480.0,0.00022739,3]
[379544829,1755325856732,-160.160025,0.00022739,7]
[379544830,1755325856743,-480.0,0.00022739,3]
[379544831,1755325856753,-480.0,0.00022739,3]
[379544832,1755325856762,-160.160025,0.00022739,7]
[379544833,1755325856887,-8503.19,0.00022739,3]
[379544834,1755325856897,-480.0,0.00022739,3]
[379544835,1755325856907,-480.0,0.00022739,3]
[379544836,1755325856916,-480.0,0.00022739,3]
[379544837,1755325856925,-327.68784338,0.00022739,3]
[379544838,1755325856936,-2453.46,0.00022739,3]
[379544839,1755325856949,-480.0,0.00022739,3]
[379544840,1755325856958,-533.25,0.00022739,3]
[379544841,1755325856967,-823.47,0.00022739,3]
[379544842,1755325856976,-480.0,0.00022739,3]
[379544843,1755325856985,-380.0,0.00022739,3]
[379544844,1755325856994,-813.04,0.00022739,3]
[379544845,1755325857004,-503.31,0.00022739,3]
[379544846,1755325857013,-294.25036365,0.00022739,3]
[379544847,1755325857022,-480.0,0.00022739,3]
[379544848,1755325857032,-349.81372945,0.00022739,3]
[379544849,1755325857041,-805.96,0.00022739,3]
[379544850,1755325857050,-480.0,0.00022739,3]
[379544851,1755325857060,-480.0,0.00022739,3]
[379544852,1755325857069,-542.44,0.00022739,3]
[379544853,1755325857078,-673.93,0.00022739,3]
[379544854,1755325857088,-480.0,0.00022739,3]
[379544855,1755325857097,-480.0,0.00022739,3]